bitfinex-derivatives/quotes_SOLF0:USTF0_20260226
["timestamp","ask_amount","ask_price","bid_price","bid_amount"]
[1772123440248,3.54889393,86.568,86.491,3.87375803]
[1772123440655,10.3983,86.55,86.503,3.87375803]
[1772123441855,3.54889393,86.568,86.505,3.87375803]
[1772123442850,10.3972,86.559,86.511,10.4029]
[1772123443353,10.3972,86.559,86.526,0.07327926]
[1772123443751,13.94609393,86.559,86.526,0.07327926]
[1772123443953,10.3983,86.55,86.505,3.87375803]
[1772123444858,10.3983,86.55,86.508,10.4032]
[1772123445061,3.54889393,86.558,86.505,3.87375803]
[1772123446860,10.3976,86.556,86.509,10.4031]
[1772123447161,0.07358362,86.54,86.509,10.4031]
[1772123447857,0.07358362,86.54,86.505,3.87375803]
[1772123448850,0.07358362,86.54,86.506,10.4035]
[1772123449560,10.3964,86.566,86.513,3.87375803]
[1772123449863,3.54889393,86.565,86.513,3.87375803]
[1772123450060,3.54889393,86.579,86.513,3.87375803]
[1772123450664,10.3956,86.572,86.526,10.4011]
[1772123450965,3.54889393,86.579,86.513,3.87375803]
[1772123451157,10.3952,86.576,86.532,14.27405803]
[1772123452262,13.94409393,86.576,86.532,3.87375803]
[1772123452867,10.396,86.569,86.518,3.87375803]
[1772123453072,3.54889393,86.575,86.503,3.87375803]
[1772123453566,3.54889393,86.575,86.53,0.07301832]
[1772123455162,10.3971,86.56,86.53,0.07301832]
[1772123455468,10.3971,86.56,86.518,10.402]
[1772123458067,10.3971,86.56,86.462,28.74584567]
[1772123458068,3.54889393,86.584,86.526,3.87375803]
[1772123458661,13.94399393,86.576,86.529,10.4007]
[1772123458970,3.54889393,86.575,86.529,10.4007]
[1772123459371,10.3955,86.574,86.529,10.4007]
[1772123459666,10.3955,86.574,86.532,10.4004]
[1772123459869,3.54889393,86.575,86.532,14.27415803]
[1772123460469,3.54889393,86.574,86.545,0.07296698]
[1772123460869,3.54889393,86.574,86.521,3.87375803]
[1772123461869,10.3961,86.568,86.528,10.4008]
[1772123462168,10.3961,86.568,86.539,0.0739217]
[1772123462477,3.54889393,86.574,86.539,0.0739217]
[1772123463563,10.3958,86.57,86.539,0.0739217]
[1772123465069,3.54889393,86.574,86.539,0.0739217]
[1772123465975,10.3957,86.572,86.539,0.0739217]
[1772123466172,3.54889393,86.574,86.539,0.0739217]
[1772123468482,10.3955,86.573,86.539,0.0739217]
[1772123468685,3.54889393,86.574,86.539,0.0739217]
[1772123469478,3.54889393,86.566,86.539,0.0739217]
[1772123469882,3.54889393,86.566,86.521,3.87375803]
[1772123470083,10.397,86.561,86.523,10.4014]
[1772123470379,3.57637511,86.579,86.53,3.07345504]
[1772123470780,10.396,86.569,86.53,3.07345504]
[1772123472090,10.3952,86.576,86.533,3.88777145]
[1772123473692,10.3959,86.57,86.533,3.88777145]
[1772123473886,3.57637511,86.579,86.533,3.88777145]
[1772123474184,3.57637511,86.579,86.494,21.56332592]
[1772123474185,3.57637511,86.579,86.52,6.96122649]
[1772123475292,10.3973,86.558,86.521,10.4017]
[1772123476088,10.3981,86.552,86.512,10.4028]
[1772123476793,10.3981,86.552,86.51,3.07345504]
[1772123477997,10.399,86.544,86.51,3.07345504]
[1772123478496,10.399,86.544,86.5,3.07345504]
[1772123478792,10.3997,86.538,86.5,3.07345504]
[1772123479389,10.4003,86.534,86.5,3.07345504]
[1772123480292,0.0754025,86.526,86.5,3.07345504]
[1772123482100,3.65177761,86.526,86.471,21.56332592]
[1772123482303,3.65177761,86.526,86.472,3.88777145]
[1772123482603,3.57637511,86.519,86.46,3.07345504]
[1772123483198,0.07365275,86.507,86.46,3.07345504]
[1772123483801,3.65002786,86.507,86.46,3.07345504]
[1772123484000,10.4043,86.5,86.46,3.07345504]
[1772123485602,10.405,86.494,86.45,3.07345504]
[1772123485806,3.57637511,86.493,86.45,3.07345504]
[1772123486301,3.57637511,86.493,86.451,10.4101]
[1772123487004,10.4053,86.492,86.451,10.4101]
[1772123487203,3.57637511,86.491,86.444,3.88777145]
[1772123487600,0.07361713,86.48,86.444,3.88777145]
[1772123488003,10.4068,86.479,86.44,3.07345504]
[1772123488707,0.07361713,86.48,86.45,3.07345504]
[1772123489104,3.57637511,86.491,86.44,3.07345504]
[1772123490001,10.4068,86.479,86.44,3.07345504]
[1772123490898,0.07401853,86.468,86.44,3.07345504]
[1772123491208,0.07401853,86.468,86.44,6.96122649]
[1772123491605,10.4059,86.487,86.45,3.07345504]
[1772123492011,3.57637511,86.484,86.44,3.07345504]
[1772123493002,3.57637511,86.482,86.453,0.07355615]
[1772123494112,10.4067,86.48,86.453,0.07355615]
[1772123497015,3.57100358,86.509,86.46,6.92055797]
[1772123497207,3.57100358,86.509,86.47,3.07345504]
[1772123497901,10.4033,86.508,86.47,3.07345504]
[1772123498610,10.4042,86.501,86.46,6.92055797]
[1772123499007,3.57100358,86.509,86.47,3.07345504]
[1772123499208,3.57100358,86.526,86.471,3.84710293]
[1772123499413,3.57100358,86.549,86.49,3.07345504]
[1772123499816,3.57100358,86.549,86.51,3.07345504]
[1772123501017,3.57100358,86.549,86.452,20.82]
[1772123501018,3.77541266,86.529,86.454,3.76765151]
[1772123501218,3.77541266,86.519,86.47,3.07345504]
[1772123501918,3.77541266,86.519,86.468,10.4081]
[1772123501919,6.8488677,86.51,86.46,3.07345504]
[1772123502514,3.77541266,86.5,86.45,3.07345504]
[1772123502718,3.77541266,86.489,86.44,3.07345504]
[1772123502920,3.77541266,86.489,86.43,3.07345504]
[1772123503321,10.4067,86.48,86.44,3.08050431]
[1772123503522,3.77541266,86.489,86.431,3.76765151]
[1772123503722,3.77541266,86.489,86.44,3.08050431]
[1772123505017,10.4074,86.474,86.44,3.08050431]
[1772123505219,10.4074,86.474,86.431,3.76765151]
[1772123508120,10.4062,86.484,86.433,3.76765151]
[1772123508324,10.4062,86.484,86.444,0.07306922]
[1772123508525,3.77541266,86.483,86.444,0.07306922]
[1772123508725,3.77541266,86.48,86.444,0.07306922]
[1772123509022,3.77541266,86.48,86.427,10.413]
[1772123510023,10.4071,86.477,86.427,10.413]
[1772123510621,3.77541266,86.466,86.407,3.76765151]
[1772123511330,3.77541266,86.459,86.38,3.76765151]
[1772123511920,3.77541266,86.425,86.362,3.76765151]
[1772123512627,8.25122614,86.44,86.364,3.76765151]
[1772123512628,14.18911266,86.422,86.364,3.76765151]
[1772123512830,3.77541266,86.422,86.364,3.76765151]
[1772123513422,3.77541266,86.422,86.374,10.4193]
[1772123513621,3.77541266,86.422,86.374,3.76765151]
[1772123514828,3.77541266,86.459,86.374,3.76765151]
[1772123516027,10.4138,86.422,86.376,3.76765151]
[1772123516528,10.4147,86.414,86.376,3.76765151]
[1772123517022,10.4147,86.414,86.362,10.4208]
[1772123517420,10.4147,86.414,86.362,14.18845151]
[1772123517828,10.4147,86.414,86.365,10.4205]
[1772123518031,3.77541266,86.42,86.366,3.76765151]
[1772123518430,3.77541266,86.42,86.372,10.4196]
[1772123519123,0.0730263,86.405,86.372,10.4196]
[1772123520532,0.0730263,86.405,86.375,3.76765151]
[1772123520827,29.06962614,86.46,86.375,3.76765151]
[1772123520828,10.4131,86.427,86.375,3.76765151]
[1772123521028,3.77541266,86.435,86.383,10.4183]
[1772123521734,10.413,86.428,86.375,14.18685151]
[1772123521930,10.413,86.428,86.376,3.76765151]
[1772123522325,10.413,86.428,86.378,3.76765151]
[1772123523038,3.77541266,86.435,86.381,3.76765151]
[1772123523631,3.77541266,86.435,86.357,3.76765151]
[1772123524237,10.415,86.412,86.365,14.18805151]
[1772123524739,3.77541266,86.412,86.349,3.76765151]
[1772123526636,10.4164,86.4,86.356,10.4216]
[1772123526837,3.77541266,86.412,86.349,3.76765151]
[1772123527137,3.77541266,86.412,86.331,3.76765151]
[1772123527333,3.77541266,86.412,86.33,8.25122614]
[1772123527334,3.77541266,86.412,86.346,10.4228]
[1772123527634,3.77541266,86.412,86.346,3.76765151]
[1772123528837,10.4158,86.405,86.357,14.18905151]
[1772123530135,3.77541266,86.412,86.363,10.4207]
[1772123530332,3.74953863,86.437,86.364,3.71342771]
[1772123530639,3.74953863,86.437,86.371,3.71342771]
[1772123531135,10.413,86.428,86.38,3.71342771]
[1772123531338,3.74953863,86.452,86.38,3.71342771]
[1772123531942,3.74953863,86.452,86.391,3.71342771]
[1772123532143,10.4101,86.452,86.399,3.71342771]
[1772123532739,3.74953863,86.468,86.41,8.25122614]
[1772123532938,8.25122614,86.5,86.411,3.71342771]
[1772123532939,3.74953863,86.484,86.411,3.71342771]
[1772123534038,3.74953863,86.499,86.435,3.71342771]
[1772123534644,3.74953863,86.515,86.447,3.71342771]
[1772123534844,3.74953863,86.515,86.451,3.71342771]
[1772123535140,3.74953863,86.515,86.462,3.71342771]
[1772123535338,8.25122614,86.56,86.455,0.07325305]
[1772123535339,3.74953863,86.531,86.471,3.71342771]
[1772123535941,3.74953863,86.531,86.437,3.71342771]
[1772123536138,3.74953863,86.519,86.437,3.71342771]
[1772123536837,3.74953863,86.499,86.437,3.71342771]
[1772123537240,10.4048,86.496,86.437,14.12522771]
[1772123538341,10.4056,86.489,86.437,3.71342771]
[1772123538542,10.4056,86.489,86.43,8.25122614]
[1772123538543,3.74953863,86.488,86.43,8.25122614]
[1772123538746,3.74953863,86.488,86.421,3.71342771]
[1772123539346,3.74953863,86.486,86.421,3.71342771]
[1772123541145,10.4063,86.483,86.423,3.71342771]
[1772123541551,10.4063,86.483,86.425,3.71342771]
[1772123541746,14.15583863,86.483,86.425,3.71342771]
[1772123542252,3.74953863,86.472,86.409,3.71342771]
[1772123542448,3.74953863,86.472,86.391,3.71342771]
[1772123542650,3.74953863,86.451,86.391,3.71342771]
[1772123543045,3.74953863,86.451,86.371,3.71342771]
[1772123543253,3.74953863,86.438,86.374,3.71342771]
[1772123544049,3.74953863,86.438,86.386,10.418]
[1772123544954,3.74953863,86.438,86.375,3.71342771]
[1772123545252,3.74953863,86.438,86.29,162.2384]
[1772123545253,3.74953863,86.438,86.357,3.71342771]
[1772123545744,10.4154,86.408,86.357,3.71342771]
[1772123545941,14.16493863,86.408,86.357,3.71342771]
[1772123546347,14.16493863,86.408,86.33,8.25122614]
[1772123546348,3.74953863,86.408,86.33,8.25122614]
[1772123546551,3.74953863,86.408,86.331,3.71342771]
[1772123546749,10.4177,86.389,86.331,3.71342771]
[1772123547542,10.4163,86.401,86.344,3.71342771]
[1772123547752,3.74953863,86.433,86.351,3.78670053]
[1772123548151,10.4134,86.425,86.368,3.71342771]
[1772123548754,3.74953863,86.433,86.371,3.71342771]
[1772123549950,3.74953863,86.433,86.382,10.4184]
[1772123550353,3.74953863,86.459,86.383,3.71342771]
[1772123551955,10.4112,86.443,86.387,10.4178]
[1772123552758,3.74953863,86.442,86.387,10.4178]
[1772123553050,10.4117,86.438,86.387,10.4178]
[1772123554454,3.74953863,86.433,86.378,10.4188]
[1772123555957,10.413,86.428,86.378,10.4188]
[1772123556254,3.7536999,86.459,86.386,3.81386341]
[1772123556448,3.7536999,86.453,86.386,3.81386341]
[1772123557358,10.4102,86.451,86.401,10.4162]
[1772123557555,3.7536999,86.453,86.386,3.81386341]
[1772123557759,3.7536999,86.453,86.38,8.25122614]
[1772123557956,3.7536999,86.422,86.351,3.81386341]
[1772123558660,3.7536999,86.407,86.336,21.30560507]
[1772123558961,3.7536999,86.407,86.336,3.81386341]
[1772123559257,3.7536999,86.382,86.319,3.81386341]
[1772123559660,3.7536999,86.382,86.308,21.30560507]
[1772123559861,10.4221,86.352,86.304,3.57822813]
[1772123560163,3.85396768,86.366,86.304,3.57822813]
[1772123560551,3.85396768,86.384,86.304,3.57822813]
[1772123561156,10.4206,86.365,86.309,14.00552813]
[1772123561356,10.4206,86.365,86.31,3.57822813]
[1772123561558,3.85396768,86.384,86.31,3.57822813]
[1772123561762,10.4215,86.358,86.31,3.57822813]
[1772123561959,3.85396768,86.384,86.31,3.57822813]
[1772123563364,3.85396768,86.384,86.311,3.57822813]
[1772123563861,10.4185,86.382,86.327,10.425]
[1772123565561,3.85396768,86.404,86.331,3.57822813]
[1772123566362,3.85396768,86.404,86.349,3.57822813]
[1772123567861,3.85396768,86.404,86.331,3.57822813]
[1772123568157,3.85396768,86.379,86.294,3.57822813]
[1772123568858,10.4225,86.349,86.301,10.4282]
[1772123569659,10.4231,86.344,86.301,10.4282]
[1772123569866,10.4231,86.344,86.294,3.57822813]
[1772123570969,10.4235,86.341,86.277,3.57822813]
[1772123571173,14.27746768,86.341,86.277,3.57822813]
[1772123571762,0.0740432,86.318,86.277,3.57822813]
[1772123572269,3.85396768,86.313,86.252,3.57822813]
[1772123572666,10.4275,86.308,86.252,3.57822813]
[1772123572861,3.85396768,86.313,86.252,3.57822813]
[1772123573071,0.07396323,86.291,86.252,3.57822813]
[1772123573768,0.07396323,86.291,86.254,10.4338]
[1772123574570,0.07396323,86.291,86.262,10.4329]
[1772123575471,0.07396323,86.291,86.25,8.27118739]
[1772123575472,3.85396768,86.33,86.263,3.57822813]
[1772123577870,10.425,86.329,86.277,10.4311]
[1772123578176,3.85396768,86.328,86.246,3.57822813]
[1772123579266,10.4271,86.311,86.278,0.07318494]
[1772123579465,3.85396768,86.31,86.246,3.57822813]
[1772123580567,10.429,86.296,86.247,10.4347]
[1772123580873,3.85396768,86.295,86.207,3.57822813]
[1772123581364,3.85396768,86.293,86.221,3.57822813]
[1772123582078,3.85396768,86.293,86.239,3.57822813]
[1772123582778,3.85396768,86.293,86.221,3.57822813]
[1772123583165,3.85396768,86.279,86.221,3.57822813]
[1772123583977,3.85396768,86.298,86.221,3.57822813]
[1772123584466,3.85396768,86.298,86.254,10.4339]
[1772123584668,3.85396768,86.298,86.241,3.57822813]
[1772123585177,10.4278,86.306,86.241,3.57822813]
[1772123585377,3.85396768,86.318,86.252,10.4341]
[1772123585378,10.4286,86.299,86.252,10.4341]
[1772123586577,3.85396768,86.318,86.264,3.57822813]
[1772123586778,3.85396768,86.335,86.264,3.57822813]
[1772123587774,10.4254,86.325,86.274,10.4314]
[1772123587979,0.07315873,86.308,86.274,10.4314]
[1772123588678,0.07315873,86.308,86.281,10.4306]
[1772123589476,0.07315873,86.308,86.273,10.4316]
[1772123589674,0.07315873,86.308,86.264,3.57822813]
[1772123590477,0.07315873,86.308,86.273,10.4316]
[1772123590786,0.07315873,86.308,86.247,3.62598021]
[1772123590787,3.61921956,86.308,86.247,3.62598021]
[1772123591182,3.54606083,86.308,86.247,3.62598021]
[1772123591882,10.4291,86.294,86.25,10.4344]
[1772123593387,0.07339018,86.281,86.25,10.4344]
[1772123593579,0.07339018,86.281,86.247,3.62598021]
[1772123593883,0.07339018,86.281,86.243,10.4352]
[1772123594083,0.07339018,86.281,86.24,8.27118739]
[1772123595077,0.07339018,86.281,86.241,3.62598021]
[1772123595277,0.07339018,86.281,86.248,10.4346]
[1772123595876,0.07339018,86.281,86.255,10.4338]
[1772123596478,0.07339018,86.281,86.247,10.4347]
[1772123597579,10.4311,86.278,86.231,10.4367]
[1772123597778,3.61945101,86.281,86.225,3.62598021]
[1772123598180,3.54606083,86.281,86.225,3.62598021]
[1772123598696,10.4309,86.28,86.228,10.4371]
[1772123598984,3.54606083,86.279,86.225,3.62598021]
[1772123599375,8.27118739,86.31,86.189,20.8836]
[1772123599376,3.54606083,86.271,86.209,3.62598021]
[1772123600081,10.432,86.27,86.209,3.62598021]
[1772123600387,3.54606083,86.271,86.209,3.62598021]
[1772123600889,3.54606083,86.263,86.193,3.62598021]
[1772123601285,10.435,86.246,86.202,10.4402]
[1772123601490,3.54606083,86.263,86.18,8.27118739]
[1772123601688,3.54606083,86.263,86.18,11.8971676]
[1772123601888,3.54606083,86.263,86.181,3.62598021]
[1772123602885,10.4358,86.239,86.191,10.4414]
[1772123603286,3.54606083,86.243,86.181,3.62598021]
[1772123603479,3.54606083,86.261,86.181,3.62598021]
[1772123604691,3.54606083,86.261,86.205,3.62598021]
[1772123605584,3.54606083,86.26,86.187,3.62598021]
[1772123606085,3.54606083,86.236,86.169,3.62598021]
[1772123606586,3.54606083,86.229,86.141,3.62598021]
[1772123607184,10.4404,86.201,86.151,10.4463]
[1772123607384,3.54606083,86.202,86.141,3.62598021]
[1772123607781,10.4405,86.2,86.142,10.4474]
[1772123607977,8.27118739,86.19,86.075,5.93026078]
[1772123608185,8.27118739,86.12,85.994,5.93026078]
[1772123608381,8.27118739,86.1,85.997,5.93026078]
[1772123608583,8.27118739,86.11,86.011,5.93026078]
[1772123608785,10.4544,86.086,86.011,5.93026078]
[1772123608984,305.03537839,86.114,85.991,34.7]
[1772123608985,305.03537839,86.114,86.031,5.93026078]
[1772123609185,8.27118739,86.11,86.01,8.27118739]
[1772123609393,8.27118739,86.09,85.991,5.93026078]
[1772123609587,8.27118739,86.09,85.92,171.20718739]
[1772123609588,8.27118739,86.05,85.971,5.98909867]
[1772123609778,162.6416,86.077,85.971,5.98909867]
[1772123609980,8.27118739,86.05,85.961,5.98909867]
[1772123610182,8.27118739,86.07,85.961,5.98909867]
[1772123610383,8.27118739,86.09,85.939,5.22213282]
[1772123610384,8.27118739,86.09,86.001,5.98909867]
[1772123610586,8.27118739,86.09,86.002,10.4645]
[1772123610787,10.4539,86.089,86.003,5.98909866]
[1772123610987,8.27118739,86.11,86.003,5.98909866]
[1772123611387,8.27118739,86.11,85.98,8.27118739]
[1772123611388,10.452,86.105,86.021,5.98909866]
[1772123611582,8.27118739,86.11,86.02,8.27118739]
[1772123611786,8.27118739,86.11,85.939,162.9006]
[1772123611787,8.27118739,86.11,86.003,6.02129333]
[1772123612188,305.03537839,86.114,86.021,6.02129333]
[1772123612784,10.4502,86.12,86.041,6.02129333]
[1772123613988,10.4485,86.134,86.041,6.02129333]
[1772123614190,10.4485,86.134,86.055,6.0046927]
[1772123614392,8.27118739,86.16,86.061,6.0046927]
[1772123615189,8.27118739,86.16,86.061,16.4619927]
[1772123615190,10.4462,86.154,86.061,16.4619927]
[1772123615390,8.27118739,86.16,86.062,6.00478699]
[1772123615802,10.4477,86.141,86.063,10.4571]
[1772123615996,10.4477,86.141,86.063,16.47379965]
[1772123616194,8.27118739,86.16,86.063,6.01669965]
[1772123616795,8.27118739,86.16,86.077,6.01669964]
[1772123616796,10.4455,86.159,86.077,6.01669964]
[1772123617194,8.27118739,86.16,86.077,6.01669964]
[1772123617602,10.447,86.146,86.056,6.01669964]
[1772123617804,8.27118739,86.13,86.05,8.27118739]
[1772123617996,10.4504,86.118,86.037,10.4602]
[1772123618201,8.27118739,86.11,86.017,5.99995365]
[1772123618700,10.4501,86.121,86.037,5.99995365]
[1772123618901,8.27118739,86.13,86.037,5.99995365]
[1772123619609,8.27118739,86.11,86.025,5.97623013]
[1772123619997,8.27118739,86.07,85.986,5.97623013]
[1772123620504,10.4588,86.049,85.973,10.468]
[1772123620902,10.4588,86.049,85.966,5.97623013]
[1772123622004,10.4572,86.062,85.969,5.99763744]
[1772123622406,10.4572,86.062,85.981,5.99763744]
[1772123622607,10.4589,86.049,85.981,5.99763744]
[1772123623909,10.4572,86.062,85.983,5.98213064]
[1772123624207,8.27118739,86.09,85.942,34.7]
[1772123624413,8.27118739,86.05,85.963,5.98213064]
[1772123624807,10.4589,86.048,85.976,5.98213063]
[1772123625106,8.27118739,86.09,85.976,5.98213063]
[1772123625309,8.33490451,86.08,85.991,5.98213063]
[1772123625908,10.4562,86.071,85.999,10.4648]
[1772123626410,10.4562,86.071,86.0,5.96442387]
[1772123626810,8.33490451,86.1,86.011,5.96442387]
[1772123627114,8.33490451,86.12,86.031,5.96442387]
[1772123627311,8.33490451,86.14,86.031,5.96442387]
[1772123628014,10.4517,86.108,86.048,5.95598596]
[1772123628312,8.33490451,86.14,86.048,5.95598596]
[1772123629109,8.33490451,86.14,86.06,5.95598596]
[1772123629912,10.4498,86.123,86.065,10.4568]
[1772123630116,0.07331129,86.106,86.038,5.93752386]
[1772123630614,10.4497,86.124,86.063,10.4571]
[1772123631306,10.4497,86.124,86.053,5.93752386]
[1772123631508,8.33490451,86.14,86.053,5.93752386]
[1772123631509,10.4485,86.134,86.053,5.93752386]
[1772123632010,8.33490451,86.14,86.053,5.93752386]
[1772123632606,8.33490451,86.14,86.054,5.93606869]
[1772123633002,323.52349442,86.135,86.054,5.93606869]
[1772123633202,323.52349442,86.135,86.05,8.33490451]
[1772123633203,313.07509442,86.135,86.065,5.93606869]
[1772123634114,0.07373973,86.109,86.065,5.93606869]
[1772123637818,0.07373973,86.109,86.03,8.33490451]
[1772123638012,0.07373973,86.109,86.031,5.98172172]
[1772123638516,162.5664,86.117,85.924,2.02322641]
[1772123638716,8.33490451,86.03,85.928,5.98172172]
[1772123639013,8.33490451,86.01,85.929,5.98172172]
[1772123639413,162.6852,86.054,85.929,5.98172172]
[1772123639616,8.33490451,86.03,85.939,6.011002]
[1772123640013,8.33490451,86.03,85.941,6.011002]
[1772123641017,10.4636,86.01,85.944,6.01100199]
[1772123641211,8.33490451,86.03,85.944,6.01100199]
[1772123641418,8.33490451,86.01,85.944,6.01100199]
[1772123641613,8.33490451,86.01,85.923,6.01651826]
[1772123641815,8.33490451,86.01,85.928,6.01651826]
[1772123642320,34.7,86.029,85.928,6.01651826]
[1772123643419,10.4665,85.986,85.928,6.01651826]
[1772123644722,10.4652,85.997,85.929,5.98579813]
[1772123645316,10.4652,85.997,85.931,5.98579813]
[1772123646025,10.4664,85.987,85.931,5.98579813]
[1772123646222,8.33490451,86.01,85.912,5.9777234]
[1772123646419,8.33490451,85.99,85.912,5.9777234]
[1772123646725,8.33490451,85.97,85.927,8.35531192]
[1772123646918,8.33490451,85.97,85.927,1.192e-05]
[1772123647128,8.33490451,85.98,85.927,1.192e-05]
[1772123647424,10.47,85.957,85.927,1.192e-05]
[1772123648019,162.7699,86.009,85.927,1.192e-05]
[1772123648020,34.7,85.984,85.927,1.192e-05]
[1772123648224,8.33490451,85.95,85.927,1.192e-05]
[1772123648521,10.472,85.941,85.927,1.192e-05]
[1772123648719,8.33490451,85.95,85.927,1.192e-05]
[1772123648914,8.33490451,85.95,85.871,5.95998631]
[1772123649117,8.33490451,85.93,85.871,5.95998631]
[1772123649322,8.33490451,85.93,85.814,2.02575857]
[1772123649323,8.33490451,85.93,85.852,5.95998631]
[1772123649924,10.4761,85.907,85.852,5.95998631]
[1772123650627,10.4773,85.898,85.852,5.95998631]
[1772123650829,8.33490451,85.93,85.852,5.95998631]
[1772123651029,10.4772,85.898,85.852,5.95998631]
[1772123651228,10.4772,85.898,85.83,8.33490451]
[1772123651229,8.33490451,85.93,85.854,5.99645162]
[1772123651729,10.4747,85.919,85.854,5.99645162]
[1772123651925,10.4747,85.919,85.856,6.0059415]
[1772123652328,8.33490451,85.93,85.856,6.0059415]
[1772123653925,10.475,85.916,85.859,5.99482665]
[1772123654522,8.33490451,85.93,85.859,5.99482665]
[1772123655029,8.33490451,85.91,85.859,5.99482665]
[1772123655429,8.33490451,85.93,85.859,5.99482665]
[1772123656026,10.4755,85.912,85.859,5.99482665]
[1772123656230,8.33490451,85.93,85.859,5.99482665]
[1772123657833,162.7939,85.996,85.871,5.99982291]
[1772123657834,8.33490451,85.95,85.871,5.99982291]
[1772123658137,8.33490451,85.97,85.871,5.99982291]
[1772123658533,8.33490451,85.97,85.893,5.99982291]
[1772123659036,8.33490451,85.99,85.893,5.99982291]
[1772123659336,8.33490451,85.99,85.904,5.99982291]
[1772123659829,10.4689,85.966,85.916,6.00287333]
[1772123660230,8.33490451,85.99,85.916,6.00287333]
[1772123661231,10.4687,85.968,85.916,6.00287333]
[1772123661535,8.33490451,85.99,85.916,6.00287333]
[1772123661736,8.33490451,85.97,85.877,5.99619647]
[1772123662332,10.4729,85.934,85.881,5.99619647]
[1772123663136,10.4729,85.934,85.882,16.47529646]
[1772123664036,8.33490451,85.96,85.862,5.99267726]
[1772123664442,8.33490451,85.96,85.88,10.4793]
[1772123664933,10.473,85.933,85.881,5.99267725]
[1772123665138,10.473,85.933,85.884,5.99267725]
[1772123666139,10.473,85.933,85.886,5.98869541]
[1772123666439,10.4739,85.925,85.886,5.98869541]
[1772123667239,10.4729,85.934,85.886,5.98869541]
[1772123667642,8.33490451,85.96,85.886,5.98869541]
[1772123667841,8.33490451,85.96,85.875,10.4799]
[1772123668242,8.33490451,85.97,85.886,5.99043956]
[1772123668838,8.33490451,85.97,85.87,8.33490451]
[1772123668839,8.33490451,85.97,85.897,5.99043956]
[1772123670135,8.33490451,85.97,85.901,6.01524889]
[1772123670938,34.7,85.985,85.901,6.01524889]
[1772123671134,8.33490451,85.96,85.901,6.01524889]
[1772123671538,8.33490451,85.96,85.885,6.00643218]
[1772123672333,8.33490451,85.94,85.861,6.00643218]
[1772123672740,10.4767,85.902,85.861,16.48803218]
[1772123672938,8.33490451,85.94,85.861,16.48803218]
[1772123673137,8.33490451,85.94,85.862,6.00643218]
[1772123673446,10.4748,85.918,85.871,6.00643218]
[1772123673840,8.33490451,85.94,85.871,6.00643218]
[1772123674640,10.4746,85.92,85.873,10.4802]
[1772123674947,20.9395,85.96,85.874,5.99406983]
[1772123674948,8.33490451,85.96,85.874,5.99406983]
[1772123675444,8.33490451,85.96,85.881,5.99406983]
[1772123676044,8.33490451,85.96,85.878,5.98735637]
[1772123676239,8.33490451,85.94,85.878,5.98735637]
[1772123677839,10.4743,85.922,85.879,5.95995551]
[1772123678543,8.33490451,85.92,85.841,5.95995551]
[1772123678946,8.33490451,85.9,85.817,5.95995551]
[1772123679148,5.23701255,85.937,85.771,5.95995551]
[1772123679149,8.33490451,85.86,85.771,5.95995551]
[1772123679346,8.33490451,85.85,85.771,5.95995551]
[1772123679546,8.33490451,85.85,85.74,8.33490451]
[1772123679547,10.4834,85.847,85.775,5.95995551]
[1772123679743,8.33490451,85.85,85.775,5.95995551]
[1772123680249,8.33490451,85.86,85.775,5.95995551]
[1772123680644,10.4834,85.848,85.776,5.91552456]
[1772123681045,10.4863,85.823,85.776,5.91552456]
[1772123681252,8.33490451,85.84,85.776,5.91552456]
[1772123682049,8.33490451,85.84,85.741,6.05557547]
[1772123682247,10.4873,85.816,85.748,16.55097547]
[1772123682549,8.33490451,85.82,85.749,6.05557547]
[1772123683052,8.33490451,85.82,85.753,6.05557547]
[1772123683345,8.33490451,85.83,85.753,6.05557547]
[1772123683944,8.33490451,85.86,85.753,6.05557547]
[1772123684145,8.33490451,85.84,85.753,6.05557547]
[1772123684550,10.486,85.826,85.757,6.02180388]
[1772123684751,8.33490451,85.82,85.735,6.02180387]
[1772123684949,8.33490451,85.82,85.655,184.83332277]
[1772123684950,10.4929,85.77,85.737,7.95e-05]
[1772123685450,10.56532901,85.861,85.741,6.02180387]
[1772123685650,10.485,85.834,85.765,6.01958582]
[1772123685849,10.485,85.834,85.74,8.33490451]
[1772123685850,8.33490451,85.83,85.743,6.01958582]
[1772123686152,8.33490451,85.79,85.737,7.95e-05]
[1772123686748,5.24366684,85.817,85.737,7.95e-05]
[1772123686949,8.33490451,85.79,85.737,7.95e-05]
[1772123687149,8.33490451,85.77,85.737,7.95e-05]
[1772123687346,8.39850258,85.76,85.737,7.95e-05]
[1772123687655,8.39850258,85.76,85.691,6.01958582]
[1772123688047,8.39850258,85.78,85.694,6.18833277]
[1772123688551,10.4925,85.773,85.694,6.18833277]
[1772123688753,8.39850258,85.78,85.694,6.18833277]